bitfinex/quotes_BTCUSD_20250417
["timestamp","ask_amount","ask_price","bid_price","bid_amount"]
[1744912596915,0.23508668,85075.0,85074.0,0.34]
[1744912597245,0.23508668,85075.0,85074.0,0.34878402]
[1744912597448,0.23508668,85075.0,85074.0,0.03120082]
[1744912597647,0.23509221,85073.0,85072.0,5.803e-05]
[1744912598402,0.23509221,85073.0,85072.0,0.00870733]
[1744912598903,0.23509221,85073.0,85072.0,5.803e-05]
[1744912599109,0.44804012,85073.0,85072.0,5.803e-05]
[1744912600442,0.44804012,85073.0,85058.0,1e-08]
[1744912600443,0.2824309,85059.0,85058.0,1e-08]
[1744912600637,0.58881881,85059.0,85058.0,4.489e-05]
[1744912601415,0.3285309,85059.0,85058.0,4.489e-05]
[1744912602576,0.44797881,85059.0,85058.0,4.489e-05]
[1744912611343,0.44897881,85059.0,85058.0,4.489e-05]
[1744912616025,0.3295309,85059.0,85058.0,4.489e-05]
[1744912618833,0.2822309,85059.0,85058.0,4.489e-05]
[1744912619862,0.2361309,85059.0,85058.0,4.489e-05]
[1744912621751,0.2351309,85059.0,85058.0,4.489e-05]
[1744912623556,0.046,85085.0,85073.0,0.23509221]
[1744912623759,0.24682609,85081.0,85077.0,0.01175405]
[1744912623956,0.24682609,85081.0,85076.0,0.34]
[1744912623957,0.23507952,85078.0,85076.0,0.34]
[1744912624303,0.23508116,85077.0,85076.0,0.34]
[1744912624872,0.23508419,85076.0,85072.0,0.01175474]
[1744912625069,0.23509774,85071.0,85070.0,0.34]
[1744912625285,0.01175461,85073.0,85070.0,0.34]
[1744912626364,0.24684759,85073.0,85070.0,0.23510002]
[1744912626595,0.24683546,85077.0,85074.0,0.23508898]
[1744912626833,0.23508292,85077.0,85074.0,0.01175447]
[1744912627065,0.23508292,85077.0,85075.0,0.34]
[1744912627066,0.23508392,85076.0,85075.0,0.34]
[1744912627628,0.23508392,85076.0,85075.0,0.34882418]
[1744912628012,0.23508392,85076.0,85075.0,0.00882418]
[1744912628223,0.23508822,85075.0,85072.0,0.35175474]
[1744912628423,0.01175433,85075.0,85072.0,0.58684828]
[1744912629041,0.01175433,85075.0,85072.0,0.24684828]
[1744912629246,0.24684597,85074.0,85071.0,0.34]
[1744912629654,0.23509386,85073.0,85071.0,0.34]
[1744912631010,0.23509497,85072.0,85070.0,0.34]
[1744912631991,0.23509774,85071.0,85070.0,0.34897828]
[1744912632238,0.23509774,85071.0,85070.0,0.00897828]
[1744912632478,0.2351309,85059.0,85056.0,0.34]
[1744912633841,0.2351309,85059.0,85056.0,0.35175696]
[1744912634410,0.2351309,85059.0,85056.0,0.01175696]
[1744912634974,0.2351309,85059.0,85055.0,0.58689818]
[1744912635104,0.2351309,85059.0,85056.0,0.01175696]
[1744912635615,0.01175654,85059.0,85055.0,0.00861988]
[1744912635831,0.01175682,85057.0,85055.0,0.00906906]
[1744912636055,0.2351392,85056.0,85055.0,0.00044918]
[1744912645607,0.2849392,85056.0,85055.0,0.00044918]
[1744912645987,0.2850392,85056.0,85055.0,0.00044918]
[1744912647008,0.40448711,85056.0,85055.0,0.00044918]
[1744912649463,0.2850392,85056.0,85055.0,0.00044918]
[1744912650370,0.2362392,85056.0,85055.0,0.00044918]
[1744912656579,0.0011,85056.0,85055.0,0.00044918]
[1744912657909,0.0011,85056.0,85055.0,0.34044918]
[1744912658325,0.0011,85056.0,85055.0,0.57559114]
[1744912658695,0.0011,85056.0,85055.0,0.69503905]
[1744912662015,0.23507726,85079.0,85070.0,0.01175502]
[1744912662286,1.24008,85080.0,85071.0,0.24684985]
[1744912662507,0.14076,85080.0,85079.0,0.23507563]
[1744912662741,0.24683011,85079.0,85076.0,0.23508129]
[1744912663188,0.0117535,85081.0,85078.0,0.23507802]
[1744912663720,0.01175336,85082.0,85078.0,0.23507802]
[1744912664164,0.24682308,85082.0,85079.0,0.23507552]
[1744912664396,0.01175309,85084.0,85079.0,0.23507552]
[1744912664626,0.01175309,85084.0,85082.0,0.235067]
[1744912664872,0.2468156,85084.0,85082.0,0.235067]
[1744912665426,0.01175309,85084.0,85081.0,0.23506998]
[1744912665646,0.01175322,85083.0,85081.0,0.2350701]
[1744912665985,0.24681541,85084.0,85081.0,0.2350701]
[1744912667636,0.01175336,85082.0,85079.0,0.23507552]
[1744912667848,0.24682311,85082.0,85079.0,0.23507552]
[1744912668050,0.2468262,85081.0,85078.0,0.00889752]
[1744912668254,0.23508114,85078.0,85076.0,0.34]
[1744912668452,0.24683043,85079.0,85076.0,0.57508343]
[1744912668816,0.01175378,85079.0,85076.0,0.57508343]
[1744912669045,0.24682904,85080.0,85077.0,0.23507954]
[1744912669275,0.24683209,85079.0,85076.0,0.57508302]
[1744912669499,0.24682954,85079.0,85076.0,0.57508302]
[1744912669846,0.01175364,85080.0,85077.0,0.23508029]
[1744912670055,0.01175405,85077.0,85073.0,0.23509063]
[1744912670239,0.01175405,85077.0,85074.0,0.34]
[1744912670444,0.01175364,85080.0,85074.0,0.34]
[1744912670680,0.23506647,85083.0,85074.0,0.34]
[1744912670938,0.23506874,85082.0,85078.0,0.23507837]
[1744912671375,0.23506874,85082.0,85078.0,0.23607837]
[1744912671620,0.24682572,85081.0,85078.0,0.001]
[1744912672319,0.23507368,85080.0,85078.0,0.001]
[1744912672514,0.24682572,85081.0,85078.0,0.23607764]
[1744912672720,0.23507354,85080.0,85078.0,0.341]
[1744912673043,0.24682572,85081.0,85078.0,0.57607753]
[1744912673569,0.23507468,85080.0,85078.0,0.341]
[1744912674308,0.23507468,85080.0,85078.0,0.001]
[1744912675127,0.23507468,85080.0,85078.0,0.341]
[1744912675332,0.23507563,85079.0,85078.0,0.341]
[1744912675593,0.23507468,85080.0,85078.0,0.341]
[1744912675794,0.24682367,85081.0,85078.0,0.57607756]
[1744912676041,0.2350738,85080.0,85078.0,0.341]
[1744912676273,0.2350738,85080.0,85078.0,0.576078]
[1744912676393,0.23507563,85079.0,85078.0,0.001]
[1744912677921,0.24682589,85081.0,85078.0,0.23607839]
[1744912678245,0.01217382,85091.0,85079.0,0.01175378]
[1744912678472,0.0004217,85091.0,85086.0,0.23505537]
[1744912678674,0.01175253,85088.0,85085.0,0.23505898]
[1744912678881,0.24680577,85088.0,85085.0,0.23505898]
[1744912679080,0.23505443,85087.0,85085.0,0.23505898]
[1744912679482,0.23505443,85087.0,85084.0,0.57506139]
[1744912679652,0.23505646,85086.0,85084.0,0.34]
[1744912680470,0.23505646,85086.0,85084.0,0.57506107]
[1744912680666,0.23505646,85086.0,85084.0,0.36421325]
[1744912681524,0.24680684,85087.0,85084.0,0.59927257]
[1744912681707,0.24680623,85087.0,85084.0,0.60027257]
[1744912682581,0.23505905,85085.0,85084.0,0.02521325]
[1744912682709,0.28225905,85085.0,85084.0,0.02521325]
[1744912686747,0.0472,85085.0,85084.0,0.02521325]
[1744912687114,0.28225905,85085.0,85084.0,0.02521325]
[1744912688656,0.0472,85085.0,85084.0,0.02521325]
[1744912692329,0.24680866,85089.0,85084.0,0.02521325]
[1744912692330,0.0117524,85089.0,85084.0,0.02521325]
[1744912692473,0.01175267,85087.0,85084.0,0.02521325]
[1744912692675,0.24680352,85088.0,85084.0,0.02521325]
[1744912692902,0.01175267,85087.0,85084.0,0.2350615]
[1744912693097,0.01175267,85087.0,85084.0,0.25987872]
[1744912693496,0.24680779,85087.0,85084.0,0.2598789]
[1744912693719,0.24680779,85087.0,85084.0,0.02481722]
[1744912693923,0.01175295,85085.0,85082.0,0.23506734]
[1744912694317,0.01175295,85085.0,85078.0,0.23507621]
[1744912694318,0.01175309,85084.0,85080.0,0.23507134]
[1744912694541,0.24681618,85084.0,85080.0,0.23507134]
[1744912696984,0.01175322,85083.0,85078.0,0.23507621]
[1744912697370,0.2468123,85085.0,85082.0,0.23506734]
[1744912697535,0.2468123,85085.0,85078.0,0.259276]
[1744912697730,0.01175322,85083.0,85080.0,0.23507139]
[1744912697973,0.2468123,85085.0,85078.0,0.25927542]
[1744912698174,0.2468123,85085.0,85081.0,0.23506899]
[1744912698578,0.24681605,85084.0,85080.0,0.23507262]
[1744912698817,0.24681783,85083.0,85079.0,0.23507561]
[1744912699135,0.01175336,85082.0,85079.0,0.23507561]
[1744912699338,4.484e-05,85082.0,85080.0,0.23507252]
[1744912700657,0.0117982,85082.0,85079.0,0.23507561]
[1744912700858,0.0117982,85082.0,85080.0,0.2350724]
[1744912701059,4.484e-05,85082.0,85080.0,0.23507101]
[1744912701463,0.23507463,85080.0,85078.0,0.02419979]
[1744912701665,0.01175626,85061.0,85040.0,0.44036031]
[1744912701869,0.01175668,85058.0,85053.0,0.23514593]
[1744912702170,0.01175668,85058.0,85053.0,0.00897181]
[1744912702555,0.23513182,85059.0,85051.0,0.34]
[1744912702776,0.01175654,85059.0,85057.0,0.34]
[1744912702917,0.01175626,85061.0,85058.0,0.23513367]
[1744912703129,0.01175654,85059.0,85056.0,0.2351381]
[1744912703359,0.0117564,85060.0,85057.0,0.34]
[1744912703515,0.24688545,85060.0,85057.0,0.34]
[1744912703712,0.0117564,85060.0,85057.0,0.34]
[1744912703926,0.2468865,85060.0,85057.0,0.34]
[1744912705147,0.2468865,85060.0,85057.0,0.57513565]
[1744912705461,0.0117564,85060.0,85057.0,0.57513565]
[1744912706386,0.05745585,85064.0,85061.0,0.34]
[1744912706590,0.0457,85064.0,85061.0,0.34]
[1744912706764,0.24687446,85064.0,85061.0,0.34]
[1744912707320,0.23512061,85063.0,85061.0,0.34]
[1744912707594,0.24687446,85064.0,85061.0,0.23512397]
[1744912707800,0.01175613,85062.0,85059.0,0.23513023]
[1744912708274,0.24687734,85063.0,85061.0,0.34]
[1744912709295,0.01175613,85062.0,85060.0,0.34]
[1744912710112,0.24687986,85062.0,85060.0,0.34]
[1744912711937,0.23512538,85061.0,85053.0,0.00886262]
[1744912712146,0.01175723,85054.0,85051.0,0.57515185]
[1744912712346,0.01175723,85054.0,85052.0,0.00437238]
[1744912712572,0.29629905,85055.0,85052.0,0.00437238]
[1744912712768,0.23514749,85053.0,85052.0,0.00437238]
[1744912713398,0.23514749,85053.0,85052.0,0.00482156]
[1744912715010,0.23514749,85053.0,85052.0,0.01351624]
[1744912715183,0.23514749,85053.0,85052.0,0.00482156]
[1744912719358,0.01175709,85055.0,85054.0,0.34]
[1744912719555,0.01175682,85057.0,85054.0,0.34]
[1744912719755,0.23514196,85055.0,85054.0,0.34]
[1744912720705,0.23514749,85053.0,85052.0,0.34044918]
[1744912721285,0.01175709,85055.0,85052.0,0.34044918]
[1744912721511,0.01175709,85055.0,85052.0,0.57559915]
[1744912721699,0.2351461,85054.0,85052.0,0.34044918]
[1744912721893,0.24690015,85055.0,85052.0,0.57559894]
[1744912722614,0.23513985,85056.0,85054.0,0.34]
[1744912723187,0.01175682,85057.0,85054.0,0.57514437]
[1744912723390,0.24689403,85057.0,85054.0,0.34]
[1744912723762,0.23514072,85056.0,85054.0,0.34]
[1744912723981,0.01175557,85066.0,85057.0,0.01175682]
[1744912724339,0.0117564,85060.0,85053.0,0.01175737]
[1744912724532,0.01175696,85056.0,85054.0,0.34]
[1744912724836,0.24689325,85057.0,85054.0,0.34]
[1744912725132,0.2351392,85056.0,85054.0,0.34]
[1744912726299,0.2351392,85056.0,85054.0,0.15765111]
[1744912727518,0.2351392,85056.0,85055.0,0.00449598]
[1744912727900,0.24689616,85056.0,85053.0,0.23514718]
[1744912728059,0.24689616,85056.0,85055.0,0.00449648]
[1744912728259,0.24689616,85056.0,85054.0,0.00449598]
[1744912728458,0.24689616,85056.0,85055.0,0.00449648]
[1744912728843,0.24689616,85056.0,85053.0,0.23514718]
[1744912729104,0.24689616,85056.0,85055.0,0.00449648]
[1744912729384,0.23514196,85055.0,85054.0,0.00449598]
[1744912729683,0.24689905,85055.0,85052.0,0.34044918]
[1744912729884,0.23514589,85054.0,85052.0,0.34044918]
[1744912730085,0.23514521,85054.0,85052.0,0.57559804]
[1744912730396,0.24689905,85055.0,85052.0,0.57559804]
[1744912730544,0.2351456,85054.0,85052.0,0.34044918]
[1744912731364,0.23514749,85053.0,85052.0,0.00044918]
[1744912733734,0.23514505,85054.0,85052.0,0.00044918]
[1744912734095,0.23514749,85053.0,85052.0,0.00044918]
[1744912740091,0.24689791,85056.0,85054.0,0.34]
[1744912740298,0.23514196,85055.0,85054.0,0.34]
[1744912741023,0.24689905,85055.0,85052.0,0.34044918]
[1744912741185,0.23514591,85054.0,85052.0,0.34044918]
[1744912742189,0.23514749,85053.0,85052.0,0.00044918]
[1744912743078,0.23514749,85053.0,85052.0,0.00494612]
[1744912743285,0.28144749,85053.0,85052.0,0.00044918]
[1744912743484,0.28144749,85053.0,85052.0,0.00494612]
[1744912743685,0.28144749,85053.0,85052.0,0.00044918]
[1744912749497,0.28154749,85053.0,85052.0,0.00044918]
[1744912750835,0.0464,85053.0,85052.0,0.00501325]
[1744912751060,0.28154749,85053.0,85052.0,0.00044918]
[1744912751263,0.28154749,85053.0,85052.0,0.00501325]
[1744912751457,0.28154749,85053.0,85052.0,0.00044918]
[1744912751633,0.28154749,85053.0,85052.0,0.00501325]
[1744912751845,0.28154749,85053.0,85052.0,0.00044918]
[1744912752042,0.28154749,85053.0,85052.0,0.00501133]
[1744912752277,0.28154749,85053.0,85052.0,0.00044918]
[1744912763567,0.4009954,85053.0,85052.0,0.00044918]
[1744912768825,0.4480954,85053.0,85052.0,0.00044918]
[1744912778696,0.32864749,85053.0,85052.0,0.00044918]
[1744912780191,0.23517791,85042.0,85040.0,0.31758906]
[1744912780436,0.23517791,85042.0,85040.0,0.02412231]
[1744912780609,0.23517791,85042.0,85041.0,0.00468031]
[1744912781510,0.23518067,85041.0,85040.0,0.02512231]
[1744912781871,0.23518067,85041.0,85040.0,0.02979897]
[1744912785864,0.23518067,85041.0,85040.0,0.02512231]
[1744912789458,0.28428067,85041.0,85040.0,0.02512231]
[1744912791314,0.28428067,85041.0,85040.0,0.02412231]
[1744912791558,0.33088067,85041.0,85040.0,0.02412231]
[1744912793935,0.45132858,85041.0,85040.0,0.02412231]
[1744912794482,0.45132858,85041.0,85040.0,4.489e-05]
[1744912800156,0.45088858,85041.0,85040.0,4.489e-05]
[1744912801707,0.44988858,85041.0,85040.0,4.489e-05]
[1744912802211,0.44988858,85041.0,85040.0,0.02671346]
[1744912802212,0.23474067,85041.0,85040.0,0.02671346]
[1744912803207,0.39948858,85041.0,85040.0,0.02671346]
[1744912803424,0.44538858,85041.0,85040.0,4.489e-05]
[1744912813563,0.44638858,85041.0,85040.0,4.489e-05]
[1744912820167,0.58694858,85041.0,85040.0,4.489e-05]
[1744912820399,0.23519174,85037.0,85036.0,1e-08]
[1744912820534,0.40203965,85037.0,85036.0,0.00013472]
[1744912822046,0.40203965,85037.0,85036.0,3.557e-05]
[1744912822482,0.4662805,85037.0,85036.0,3.557e-05]
[1744912822725,0.58572841,85037.0,85036.0,3.557e-05]
[1744912822936,0.26150088,85034.0,85031.0,1e-08]
[1744912823242,0.46209432,85032.0,85031.0,1e-08]
[1744912823854,0.46209432,85032.0,85005.0,0.0008432]
[1744912823855,0.01176152,85023.0,85005.0,0.0008432]
[1744912824156,0.2352443,85018.0,85017.0,0.00074369]
[1744912824297,0.35469221,85018.0,85017.0,0.00074369]
[1744912829056,0.35469221,85018.0,85017.0,0.00174369]
[1744912829697,0.2352443,85018.0,85017.0,0.00174369]
[1744912829918,0.24700098,85020.0,85017.0,0.00174369]
[1744912830092,0.01176055,85030.0,85025.0,0.01176124]
[1744912830290,0.01176124,85025.0,85021.0,0.3517618]
[1744912830495,0.01176124,85025.0,85024.0,0.34]
[1744912830899,0.24698617,85025.0,85024.0,0.34]
[1744912831715,0.24698617,85025.0,85023.0,0.34]
[1744912832227,0.01176124,85025.0,85023.0,0.57523038]
[1744912832430,0.01175889,85042.0,85035.0,0.23519672]
[1744912832641,0.23618186,85041.0,85036.0,0.34]
[1744912832975,0.24694728,85039.0,85036.0,0.34]
[1744912833333,0.23532625,85037.0,85036.0,0.34]
[1744912833552,0.01175972,85036.0,85033.0,0.34]
[1744912833733,0.23532625,85037.0,85034.0,0.01176]
[1744912833734,0.00013451,85037.0,85034.0,0.01176]
[1744912834072,0.00013451,85037.0,85036.0,0.34]
[1744912836355,0.00013451,85037.0,85033.0,0.58696033]
[1744912836549,0.00013451,85037.0,85036.0,0.34]
[1744912838169,0.01189409,85037.0,85032.0,0.01176027]
[1744912838370,0.01175986,85035.0,85033.0,0.34]
[1744912838590,0.01176083,85028.0,85025.0,0.78787627]
[1744912838793,0.01176055,85030.0,85025.0,0.34]
[1744912839067,0.23520929,85031.0,85028.0,0.23521593]
[1744912839278,0.01176041,85031.0,85030.0,0.34]
[1744912839474,0.24696673,85032.0,85030.0,0.34]
[1744912839675,0.01176027,85032.0,85030.0,0.34]
[1744912840390,0.01176041,85031.0,85028.0,0.34]
[1744912840515,0.2469715,85031.0,85028.0,0.34]
[1744912840716,0.01176014,85033.0,85030.0,0.34]
[1744912841099,0.23520581,85032.0,85030.0,0.57520939]
[1744912842154,0.01176041,85031.0,85024.0,0.34]
[1744912842359,0.01176083,85028.0,85026.0,0.34]
[1744912842587,0.01176083,85028.0,85026.0,0.57522202]
[1744912843099,0.01176083,85028.0,85026.0,0.34]
[1744912843100,0.24697772,85028.0,85026.0,0.34]
[1744912843304,0.2352194,85027.0,85026.0,0.34]
[1744912843597,0.24698037,85027.0,85023.0,0.2555881]
[1744912843804,0.24698037,85027.0,85024.0,0.23522633]
[1744912844383,0.24698424,85026.0,85023.0,0.24382658]
[1744912845146,0.2352277,85024.0,85023.0,0.00859823]
[1744912845905,0.23524153,85019.0,85017.0,0.00174369]
[1744912846207,0.2352443,85018.0,85017.0,0.00174369]
[1744912846371,0.24700069,85020.0,85017.0,0.34174369]
[1744912847193,0.2352443,85018.0,85017.0,0.34174369]
[1744912847592,0.24699457,85023.0,85019.0,0.01176207]
[1744912847814,0.24699457,85023.0,85021.0,0.34]
[1744912848161,0.0001,85024.0,85023.0,0.57523046]
[1744912849417,0.0001,85024.0,85023.0,0.34]
[1744912849617,0.0001,85024.0,85023.0,0.57523046]
[1744912850749,0.0001,85024.0,85023.0,0.62093046]
[1744912850954,0.01175778,85050.0,85039.0,0.23518552]
[1744912851172,0.23517001,85045.0,85040.0,0.57518344]
[1744912851387,0.24692849,85045.0,85042.0,0.23517775]
[1744912851533,0.01175848,85045.0,85042.0,0.23517704]
[1744912851750,0.23525012,85053.0,85049.0,0.35175792]
[1744912851956,0.23515579,85050.0,85049.0,0.34]
[1744912852959,0.23515579,85050.0,85048.0,0.00902943]
[1744912853277,0.23515999,85049.0,85047.0,0.34]
[1744912854224,0.23516473,85047.0,85044.0,0.35175861]
[1744912854518,0.23516473,85047.0,85044.0,0.58693075]
[1744912854764,0.24692293,85047.0,85044.0,0.58693075]
[1744912855301,0.24692293,85047.0,85044.0,0.34]
[1744912855511,0.23516783,85046.0,85044.0,0.34]
[1744912856702,0.23516783,85046.0,85042.0,0.34]
[1744912856703,0.23517555,85043.0,85042.0,0.34]
[1744912856908,0.23517555,85043.0,85042.0,0.34872953]
[1744912857824,0.23517555,85043.0,85042.0,0.00872953]
[1744912858048,0.23517801,85042.0,85040.0,0.34]
[1744912858250,0.23518067,85041.0,85040.0,0.34]
[1744912858593,0.235236,85021.0,85020.0,0.26605294]
[1744912858771,0.23524277,85019.0,85017.0,0.00074369]
[1744912858943,0.01176235,85017.0,85006.0,0.24703892]
[1744912859145,0.01176235,85017.0,85010.0,0.68314155]
[1744912859146,0.23526083,85013.0,85010.0,0.68314155]
[1744912859347,0.01176193,85020.0,85015.0,0.2352526]
[1744912859551,0.01176193,85020.0,85016.0,0.35176249]
[1744912859769,0.24700626,85019.0,85016.0,0.34]
[1744912859954,0.24700626,85019.0,85015.0,0.2352526]
[1744912860221,0.24700626,85019.0,85016.0,0.34]
[1744912860423,0.01176207,85019.0,85014.0,0.35176276]
[1744912860633,0.05976124,85025.0,85021.0,0.0117618]
[1744912860973,0.2352277,85024.0,85023.0,0.34]
[1744912861579,0.2362277,85024.0,85023.0,0.34]
[1744912862194,0.2362277,85024.0,85022.0,0.34]
[1744912862598,0.23523046,85023.0,85022.0,0.34]
[1744912863329,0.24699657,85022.0,85020.0,0.34]
[1744912863587,0.235236,85021.0,85020.0,0.34]
[1744912864265,0.24699613,85022.0,85019.0,0.34]
[1744912865063,0.001,85024.0,85020.0,0.01176193]
[1744912865238,0.001,85024.0,85022.0,0.575232]
[1744912865456,0.001,85024.0,85023.0,0.57523046]
[1744912869172,0.001,85024.0,85023.0,0.69467837]
[1744912869381,0.001,85024.0,85023.0,0.69567837]
[1744912870070,0.0001,85053.0,85052.0,0.23515026]
[1744912870222,0.0001,85053.0,85051.0,0.23515252]
[1744912871366,0.0001,85053.0,85050.0,0.01175778]
[1744912871367,0.23524765,85053.0,85050.0,0.35175778]
[1744912871657,0.24700502,85053.0,85050.0,0.37520433]
[1744912871858,0.0001,85053.0,85050.0,0.25860137]
[1744912872036,0.0001,85053.0,85051.0,0.23515148]
[1744912872216,0.0001,85053.0,85052.0,0.23515026]
[1744912873224,0.0001,85053.0,85052.0,0.24249065]
[1744912873949,0.0001,85053.0,85052.0,0.07735971]
[1744912874160,0.0001,85053.0,85052.0,0.00734039]
[1744912874491,0.01175944,85038.0,85030.0,0.44787627]
[1744912874711,0.24694585,85039.0,85035.0,0.24695706]
[1744912874928,0.23518067,85042.0,85037.0,0.01175958]
[1744912875209,0.24694032,85041.0,85038.0,0.01175944]
[1744912875869,0.01175903,85041.0,85039.0,0.2351862]
[1744912875998,0.01175889,85042.0,85039.0,0.24694551]
[1744912876197,0.01175889,85042.0,85039.0,0.27041597]
[1744912876676,0.01175889,85042.0,85039.0,0.02347046]
[1744912876829,0.24693583,85043.0,85039.0,0.02347046]
[1744912877028,0.24693583,85043.0,85035.0,0.01175986]
[1744912877707,0.23519283,85037.0,85034.0,0.24695882]
[1744912877916,0.23519283,85037.0,85035.0,0.00870306]
[1744912877917,0.2351945,85036.0,85035.0,0.00870306]
[1744912878064,0.23519855,85035.0,85034.0,0.02433463]
[1744912878269,0.23519855,85035.0,85033.0,0.34]
[1744912879485,0.23520003,85034.0,85031.0,0.35176041]
[1744912879687,0.24696003,85034.0,85031.0,0.35176041]
[1744912879889,0.23520003,85034.0,85031.0,0.58696685]
[1744912880092,0.23520003,85034.0,85031.0,0.61052428]
[1744912880297,0.23520003,85034.0,85031.0,0.61951659]
[1744912881565,0.24696003,85034.0,85031.0,0.61951659]
[1744912881736,0.23520387,85033.0,85031.0,0.61951659]
[1744912882305,0.23520387,85033.0,85031.0,0.37254974]
[1744912882703,0.23520556,85032.0,85031.0,0.37254974]
[1744912882880,0.23520387,85033.0,85031.0,0.37254974]
[1744912883647,0.23520556,85032.0,85031.0,0.02355743]
[1744912884054,0.2352277,85024.0,85023.0,0.00972276]
[1744912885081,0.2352277,85024.0,85023.0,0.03331128]
[1744912885489,0.2352277,85024.0,85023.0,0.001]
[1744912885695,0.2352277,85024.0,85023.0,0.02511111]
[1744912888280,0.2352277,85024.0,85023.0,0.001]
[1744912889008,0.2352277,85024.0,85023.0,0.02526659]
[1744912889217,0.2352277,85024.0,85023.0,0.001]
[1744912894490,0.2352277,85024.0,85023.0,0.02443751]
[1744912901992,0.44947561,85024.0,85023.0,0.02443751]
[1744912902196,0.44947561,85024.0,85023.0,0.001]
[1744912903587,0.4504756,85024.0,85023.0,1e-08]
[1744912904569,0.4514756,85024.0,85023.0,1e-08]
[1744912911309,0.23526367,85011.0,85010.0,0.02350551]
[1744912911653,0.2352775,85006.0,85001.0,0.340843]
[1744912912348,0.2352775,85006.0,85005.0,0.02507181]
[1744912912818,0.2352775,85006.0,85005.0,0.02520632]
[1744912917157,0.2352775,85006.0,85005.0,0.02620632]
[1744912920372,0.2353775,85006.0,85005.0,0.02620632]
[1744912921673,0.2353775,85006.0,85005.0,0.02520632]
[1744912922246,0.497497,85006.0,85005.0,0.00097771]
[1744912922463,0.37904909,85006.0,85005.0,0.00097771]
[1744912922654,0.28257749,85006.0,85005.0,0.00097771]
[1744912923331,0.4020254,85006.0,85005.0,0.00097771]
[1744912924781,0.23536835,84974.0,84969.0,0.01176899]
[1744912924995,0.01176885,84970.0,84965.0,0.23539104]
[1744912925203,0.24714866,84970.0,84969.0,0.02951131]
[1744912925355,0.01176899,84969.0,84966.0,0.01176941]
[1744912925759,0.01176802,84976.0,84972.0,0.34]
[1744912925944,0.24713073,84976.0,84972.0,0.34]
[1744912926128,0.24713394,84975.0,84972.0,0.34]
[1744912926826,0.24713394,84975.0,84968.0,0.01176913]
[1744912926827,0.01176885,84970.0,84967.0,0.34]
[1744912927035,0.01176844,84973.0,84967.0,0.34]
[1744912927235,0.01176844,84973.0,84968.0,0.00469348]
[1744912927435,0.01176816,84975.0,84970.0,0.01176885]
[1744912927640,0.01176761,84979.0,84971.0,0.01662943]
[1744912927841,0.01176761,84979.0,84975.0,0.34]
[1744912928043,0.01176789,84977.0,84976.0,0.00486223]
[1744912928272,0.01176802,84976.0,84973.0,0.35176844]
[1744912928475,0.01176802,84976.0,84974.0,0.00486071]
[1744912928677,0.24711038,84983.0,84973.0,0.35176844]
[1744912928910,0.01176761,84979.0,84974.0,0.00486274]
[1744912929333,0.01176789,84977.0,84973.0,0.34]
[1744912929551,0.01176733,84981.0,84975.0,0.00486223]
[1744912929758,0.01176761,84979.0,84975.0,0.01176816]
[1744912929961,0.01176761,84979.0,84976.0,0.00486324]
[1744912930190,0.24712034,84979.0,84976.0,0.00486324]
[1744912930554,0.01176775,84978.0,84975.0,0.01176816]
[1744912930763,0.01176775,84978.0,84977.0,0.00486223]
[1744912930975,0.24712034,84979.0,84976.0,0.00486172]
[1744912931207,0.01176761,84979.0,84975.0,0.01176816]
[1744912931419,0.0001,84981.0,84977.0,0.34486172]
[1744912931631,0.23544811,84981.0,84977.0,0.34486172]
[1744912931824,0.01176747,84980.0,84977.0,0.34486172]
[1744912932025,0.01176747,84980.0,84977.0,0.34492518]
[1744912932250,0.01186733,84981.0,84978.0,0.01176775]
[1744912932578,0.0001,84981.0,84979.0,0.34]
[1744912932724,0.0001,84981.0,84978.0,0.01176775]
[1744912933104,0.0001,84981.0,84977.0,0.10298049]
[1744912933312,0.0001,84981.0,84977.0,0.01176789]
[1744912933529,0.01186733,84981.0,84977.0,0.01176789]
[1744912933790,0.01176816,84975.0,84968.0,0.01176913]
[1744912933991,0.01176789,84977.0,84973.0,0.24713639]
[1744912934265,0.01176789,84977.0,84973.0,0.01176844]
[1744912934469,0.01176761,84979.0,84975.0,0.01176816]
[1744912935041,0.01176775,84978.0,84975.0,0.01176816]
[1744912935244,0.24712073,84979.0,84976.0,0.34]
[1744912935848,0.23535503,84978.0,84976.0,0.34]
[1744912936285,0.01176747,84980.0,84976.0,0.24712784]
[1744912936487,0.0001,84981.0,84978.0,0.01176775]
[1744912937892,0.0001,84981.0,84977.0,0.247125]
[1744912937893,0.24721505,84981.0,84977.0,0.247125]
[1744912939233,0.01186733,84981.0,84978.0,0.24712226]
[1744912939590,0.0001,84981.0,84979.0,0.23535189]
[1744912939996,0.0001,84981.0,84980.0,0.34]
[1744912940394,0.0001,84981.0,84980.0,0.55564791]
[1744912941573,0.0001,84981.0,84980.0,0.70432791]
[1744912945981,0.0001,84981.0,84980.0,0.60812791]
[1744912949887,0.0001,84981.0,84980.0,0.8434774]
[1744912955420,0.0001,84981.0,84980.0,0.8444774]
[1744912958557,0.0001,84981.0,84980.0,0.6957974]
[1744912960600,0.00109999,84981.0,84980.0,0.6957974]
[1744912960731,0.05009999,84981.0,84980.0,0.001]
[1744912960936,0.05109999,84981.0,84980.0,0.001]
[1744912966935,0.05109999,84981.0,84980.0,0.23634949]
[1744912970160,0.05109999,84981.0,84980.0,0.001]
[1744912970902,0.05109999,84981.0,84980.0,0.23634949]
[1744912971256,0.05009999,84981.0,84980.0,0.23534949]
[1744912972663,0.00109999,84981.0,84980.0,0.23534949]
[1744912973531,0.0459,84972.0,84970.0,0.23537719]
[1744912974068,0.0459,84972.0,84971.0,0.23537442]
[1744912974931,0.23537719,84970.0,84969.0,0.00044962]
[1744912975101,0.23537442,84971.0,84969.0,0.34044962]
[1744912975299,0.0459,84972.0,84969.0,0.58759849]
[1744912975615,0.0459,84972.0,84970.0,0.23537719]
[1744912976014,0.28127216,84972.0,84970.0,0.23537719]
[1744912976238,0.0459,84972.0,84970.0,0.23537719]
[1744912976436,0.0459,84972.0,84971.0,0.23537442]
[1744912976823,0.0485,84979.0,84976.0,0.24712859]
[1744912977023,0.0485,84979.0,84976.0,0.01176802]
[1744912977227,0.0485,84979.0,84975.0,0.24713102]
[1744912977384,0.0485,84979.0,84978.0,0.23535503]
[1744912977584,0.0485,84979.0,84976.0,0.01176802]
[1744912978054,0.0485,84979.0,84977.0,0.2353578]
[1744912978347,0.0485,84979.0,84978.0,0.23535503]
[1744912978843,0.0485,84979.0,84978.0,0.57535503]
[1744912979046,0.00209999,84981.0,84980.0,0.23534949]
[1744912979402,0.00209999,84981.0,84980.0,0.23770279]
[1744912979728,0.00209999,84981.0,84980.0,0.23534949]
[1744912980596,0.00209999,84981.0,84980.0,0.57770273]
[1744912980805,0.00209999,84981.0,84980.0,0.57534949]